[Event "Titled Tuesday Blitz February 28 Late 2023"]
[White "Blomqvist, Erik"]
[Black "Makridis, Dimitrios"]
[WhiteFideId "1709437"]
[BlackFideId "25864475"]
[WhiteElo "2436"]
[BlackElo "2277"]
[Result "0-1"]
[Round "08"]
[TimeControl "180+2"]
[Date "2023.02.28"]
[WhiteClock "0:00:03"]
[BlackClock "0:00:05"]

1. e4 {[%clk 0:03:00]}  c5 {[%clk 0:02:48]} 2. Nf3 {[%clk 0:02:59]}  d6 {[%clk 0:02:48]} 3. d4 {[%clk 0:02:58]}  cxd4 {[%clk 0:02:49]} 4. Qxd4 {[%clk 0:02:59]}  Nc6 {[%clk 0:02:47]} 5. Qe3 {[%clk 0:02:59]}  g6 {[%clk 0:02:45]} 6. Be2 {[%clk 0:02:59]}  Bg7 {[%clk 0:02:35]} 7. O-O {[%clk 0:02:59]}  Nf6 {[%clk 0:02:36]} 8. Rd1 {[%clk 0:02:57]}  O-O {[%clk 0:02:35]} 9. h3 {[%clk 0:02:57]}  Nd7 {[%clk 0:02:31]} 10. Nc3 {[%clk 0:02:56]}  Nc5 {[%clk 0:02:17]} 11. Nd5 {[%clk 0:02:26]}  f5 {[%clk 0:02:06]} 12. exf5 {[%clk 0:02:21]}  Bxf5 {[%clk 0:02:07]} 13. c3 {[%clk 0:02:00]}  Kh8 {[%clk 0:01:46]} 14. b4 {[%clk 0:01:25]}  Nd7 {[%clk 0:01:26]} 15. g4 {[%clk 0:01:21]}  Bc2 {[%clk 0:01:11]} 16. Rd2 {[%clk 0:01:11]}  Ba4 {[%clk 0:01:10]} 17. Ng5 {[%clk 0:01:08]}  Nf6 {[%clk 0:00:42]} 18. Ne6 {[%clk 0:01:05]}  Qd7 {[%clk 0:00:42]} 19. Nxf8 {[%clk 0:01:00]}  Rxf8 {[%clk 0:00:43]} 20. Nxf6 {[%clk 0:00:56]}  Bxf6 {[%clk 0:00:43]} 21. g5 {[%clk 0:00:51]}  Be5 {[%clk 0:00:39]} 22. Bg4 {[%clk 0:00:49]}  Qe8 {[%clk 0:00:31]} 23. Bb2 {[%clk 0:00:31]}  Bf4 {[%clk 0:00:26]} 24. c4+ {[%clk 0:00:15]}  e5 {[%clk 0:00:22]} 25. Qe2 {[%clk 0:00:15]}  Bxd2 {[%clk 0:00:21]} 26. Qxd2 {[%clk 0:00:16]}  Qf7 {[%clk 0:00:17]} 27. b5 {[%clk 0:00:14]}  Ne7 {[%clk 0:00:09]} 28. Re1 {[%clk 0:00:11]}  Nf5 {[%clk 0:00:08]} 29. Bxf5 {[%clk 0:00:06]}  Qxf5 {[%clk 0:00:09]} 30. Re2 {[%clk 0:00:05]}  Qxh3 {[%clk 0:00:03]} 31. Qxd6 {[%clk 0:00:03]}  Qg4+ {[%clk 0:00:04]} 32. Kf1 {[%clk 0:00:03]}  Qh3+ {[%clk 0:00:04]} 33. Ke1 {[%clk 0:00:03]}  Qh1+ {[%clk 0:00:04]} 34. Kd2 {[%clk 0:00:03]}  Qd1+ {[%clk 0:00:05]} 0-1


[Site "https://www.chess.com"]

[Event "Titled Tuesday Blitz February 28 Late 2023"]
[White "Pulpan, Jakub"]
[Black "Aldokhin, Ivan"]
[WhiteFideId "302759"]
[BlackFideId "24115720"]
[WhiteElo "2484"]
[BlackElo "2322"]
[Result "1-0"]
[Round "08"]
[TimeControl "180+2"]
[Date "2023.02.28"]
[WhiteClock "0:00:37"]
[BlackClock "0:00:03"]

1. Nf3 {[%clk 0:02:55]}  Nf6 {[%clk 0:02:59]} 2. b3 {[%clk 0:02:55]}  d6 {[%clk 0:02:57]} 3. d4 {[%clk 0:02:55]}  c5 {[%clk 0:02:51]} 4. dxc5 {[%clk 0:02:50]}  Qa5+ {[%clk 0:02:51]} 5. Nbd2 {[%clk 0:02:46]}  Qxc5 {[%clk 0:02:49]} 6. e3 {[%clk 0:02:46]}  Nc6 {[%clk 0:02:46]} 7. Bb2 {[%clk 0:02:41]}  e5 {[%clk 0:02:44]} 8. Be2 {[%clk 0:02:41]}  Be7 {[%clk 0:02:43]} 9. O-O {[%clk 0:02:40]}  O-O {[%clk 0:02:40]} 10. c4 {[%clk 0:02:37]}  Bf5 {[%clk 0:02:33]} 11. Nh4 {[%clk 0:02:36]}  Be6 {[%clk 0:02:32]} 12. Rc1 {[%clk 0:02:29]}  Rfd8 {[%clk 0:02:25]} 13. Bd3 {[%clk 0:02:22]}  g6 {[%clk 0:02:06]} 14. Nhf3 {[%clk 0:02:17]}  a5 {[%clk 0:01:18]} 15. Ne4 {[%clk 0:02:13]}  Nxe4 {[%clk 0:01:13]} 16. Bxe4 {[%clk 0:02:14]}  a4 {[%clk 0:01:07]} 17. Nd4 {[%clk 0:01:53]}  axb3 {[%clk 0:00:29]} 18. Nxe6 {[%clk 0:01:38]}  fxe6 {[%clk 0:00:28]} 19. axb3 {[%clk 0:01:29]}  Ra2 {[%clk 0:00:27]} 20. Rc2 {[%clk 0:01:25]}  Nb4 {[%clk 0:00:24]} 21. Rd2 {[%clk 0:01:23]}  d5 {[%clk 0:00:20]} 22. cxd5 {[%clk 0:01:20]}  exd5 {[%clk 0:00:20]} 23. Bf3 {[%clk 0:01:19]}  Bf6 {[%clk 0:00:13]} 24. Qb1 {[%clk 0:01:12]}  Rd6 {[%clk 0:00:05]} 25. Rfd1 {[%clk 0:01:12]}  Rxb2 {[%clk 0:00:03]} 26. Rxb2 {[%clk 0:01:10]}  e4 {[%clk 0:00:03]} 27. Be2 {[%clk 0:01:09]}  Bxb2 {[%clk 0:00:03]} 28. Qxb2 {[%clk 0:01:10]}  Rc6 {[%clk 0:00:03]} 29. Qe5 {[%clk 0:01:07]}  Qd6 {[%clk 0:00:02]} 30. Qe8+ {[%clk 0:01:06]}  Kg7 {[%clk 0:00:02]} 31. Qa8 {[%clk 0:01:03]}  Rc7 {[%clk 0:00:01]} 32. h3 {[%clk 0:00:58]}  Nc6 {[%clk 0:00:01]} 33. Bc4 {[%clk 0:00:58]}  d4 {[%clk 0:00:01]} 34. exd4 {[%clk 0:00:59]}  Nxd4 {[%clk 0:00:02]} 35. Qa1 {[%clk 0:00:58]}  Rd7 {[%clk 0:00:01]} 36. Re1 {[%clk 0:00:58]}  Qf6 {[%clk 0:00:02]} 37. Kh1 {[%clk 0:00:56]}  h5 {[%clk 0:00:02]} 38. Rxe4 {[%clk 0:00:57]}  Nc6 {[%clk 0:00:01]} 39. Qe1 {[%clk 0:00:55]}  Qf5 {[%clk 0:00:02]} 40. Qc3+ {[%clk 0:00:55]}  Qf6 {[%clk 0:00:02]} 41. Qxf6+ {[%clk 0:00:51]}  Kxf6 {[%clk 0:00:03]} 42. Re6+ {[%clk 0:00:49]}  Kf5 {[%clk 0:00:03]} 43. g3 {[%clk 0:00:47]}  Ne5 {[%clk 0:00:03]} 44. Rb6 {[%clk 0:00:47]}  Rd2 {[%clk 0:00:01]} 45. Kg2 {[%clk 0:00:46]}  g5 {[%clk 0:00:01]} 46. Rxb7 {[%clk 0:00:46]}  g4 {[%clk 0:00:02]} 47. hxg4+ {[%clk 0:00:43]}  hxg4 {[%clk 0:00:02]} 48. Rb5 {[%clk 0:00:44]}  Rd1 {[%clk 0:00:01]} 49. Be2 {[%clk 0:00:43]}  Rd2 {[%clk 0:00:01]} 50. Bxg4+ {[%clk 0:00:43]}  Ke4 {[%clk 0:00:01]} 51. Bh5 {[%clk 0:00:40]}  Kd4 {[%clk 0:00:02]} 52. Bf3 {[%clk 0:00:36]}  Nd3 {[%clk 0:00:02]} 53. Rd5+ {[%clk 0:00:36]}  Kc3 {[%clk 0:00:02]} 54. Be4 {[%clk 0:00:36]}  Rxf2+ {[%clk 0:00:02]} 55. Kg1 {[%clk 0:00:36]}  Rd2 {[%clk 0:00:01]} 56. Rxd3+ {[%clk 0:00:37]}  Rxd3 {[%clk 0:00:02]} 57. Bxd3 {[%clk 0:00:38]}  Kxd3 {[%clk 0:00:02]} 58. Kf2 {[%clk 0:00:37]}  Ke4 {[%clk 0:00:03]} 59. b4 {[%clk 0:00:37]} 1-0


[Site "https://www.chess.com"]

[Event "Titled Tuesday Blitz February 28 Late 2023"]
[White "Fernandez Guillen, Ernesto J."]
[Black "Manelyuk, Daniil"]
[WhiteFideId "3512428"]
[BlackFideId "44173920"]
[WhiteElo "2423"]
[BlackElo "2259"]
[Result "1-0"]
[Round "08"]
[TimeControl "180+2"]
[Date "2023.02.28"]
[WhiteClock "0:00:08"]
[BlackClock "0:00:09"]

1. e4 {[%clk 0:03:00]}  e6 {[%clk 0:02:59]} 2. Nf3 {[%clk 0:02:49]}  d5 {[%clk 0:02:59]} 3. Nc3 {[%clk 0:02:48]}  dxe4 {[%clk 0:02:56]} 4. Nxe4 {[%clk 0:02:49]}  Be7 {[%clk 0:02:56]} 5. Ng3 {[%clk 0:02:50]}  Nf6 {[%clk 0:02:55]} 6. d4 {[%clk 0:02:51]}  O-O {[%clk 0:02:56]} 7. c3 {[%clk 0:02:52]}  c5 {[%clk 0:02:56]} 8. Bd3 {[%clk 0:02:53]}  cxd4 {[%clk 0:02:56]} 9. Be3 {[%clk 0:02:54]}  dxe3 {[%clk 0:02:54]} 10. fxe3 {[%clk 0:02:50]}  Nc6 {[%clk 0:02:54]} 11. Qc2 {[%clk 0:02:44]}  Qb6 {[%clk 0:02:53]} 12. O-O-O {[%clk 0:02:43]}  e5 {[%clk 0:02:52]} 13. Kb1 {[%clk 0:02:42]}  Be6 {[%clk 0:02:51]} 14. Ng5 {[%clk 0:02:42]}  Qxe3 {[%clk 0:02:41]} 15. Bxh7+ {[%clk 0:02:33]}  Kh8 {[%clk 0:02:37]} 16. Nxe6 {[%clk 0:02:32]}  fxe6 {[%clk 0:02:36]} 17. Bg6 {[%clk 0:02:33]}  Rad8 {[%clk 0:02:32]} 18. Rde1 {[%clk 0:02:29]}  Qd2 {[%clk 0:02:26]} 19. Qa4 {[%clk 0:02:27]}  Qf4 {[%clk 0:02:20]} 20. Qb5 {[%clk 0:02:24]}  Rd2 {[%clk 0:02:09]} 21. Rhf1 {[%clk 0:02:21]}  Qg5 {[%clk 0:02:05]} 22. Bc2 {[%clk 0:02:21]}  Rfd8 {[%clk 0:02:02]} 23. Ne4 {[%clk 0:01:53]}  Nxe4 {[%clk 0:01:59]} 24. Bxe4 {[%clk 0:01:54]}  a6 {[%clk 0:01:41]} 25. Qb3 {[%clk 0:01:46]}  Qg4 {[%clk 0:01:25]} 26. h3 {[%clk 0:01:11]}  Qg3 {[%clk 0:01:05]} 27. Qxe6 {[%clk 0:01:01]}  Rf2 {[%clk 0:00:16]} 28. Rd1 {[%clk 0:00:26]}  Rdd2 {[%clk 0:00:15]} 29. Rxd2 {[%clk 0:00:25]}  Rxf1+ {[%clk 0:00:15]} 30. Kc2 {[%clk 0:00:25]}  Qe3 {[%clk 0:00:12]} 31. Qg6 {[%clk 0:00:18]}  Qh6 {[%clk 0:00:08]} 32. Qg4 {[%clk 0:00:12]}  Rf8 {[%clk 0:00:02]} 33. h4 {[%clk 0:00:08]}  Bxh4 {[%clk 0:00:02]} 34. g3 {[%clk 0:00:08]}  Bxg3 {[%clk 0:00:01]} 35. Qxg3 {[%clk 0:00:07]}  Qf4 {[%clk 0:00:02]} 36. Rh2+ {[%clk 0:00:06]}  Kg8 {[%clk 0:00:02]} 37. Bd5+ {[%clk 0:00:06]}  Rf7 {[%clk 0:00:02]} 38. Qxf4 {[%clk 0:00:05]}  exf4 {[%clk 0:00:03]} 39. Rf2 {[%clk 0:00:04]}  g5 {[%clk 0:00:03]} 40. Rg2 {[%clk 0:00:05]}  Ne7 {[%clk 0:00:03]} 41. Rxg5+ {[%clk 0:00:04]}  Kf8 {[%clk 0:00:03]} 42. Bxf7 {[%clk 0:00:05]}  Kxf7 {[%clk 0:00:04]} 43. Kd3 {[%clk 0:00:05]}  Kf6 {[%clk 0:00:04]} 44. Rh5 {[%clk 0:00:06]}  Ng6 {[%clk 0:00:02]} 45. Ke4 {[%clk 0:00:06]}  Ke6 {[%clk 0:00:03]} 46. Rf5 {[%clk 0:00:04]}  f3 {[%clk 0:00:02]} 47. Rxf3 {[%clk 0:00:04]}  Ne5 {[%clk 0:00:03]} 48. Rh3 {[%clk 0:00:04]}  Nc4 {[%clk 0:00:03]} 49. Rh6+ {[%clk 0:00:04]}  Kd7 {[%clk 0:00:04]} 50. b3 {[%clk 0:00:05]}  Nd6+ {[%clk 0:00:04]} 51. Kd5 {[%clk 0:00:06]}  Nb5 {[%clk 0:00:04]} 52. Rh7+ {[%clk 0:00:07]}  Kc8 {[%clk 0:00:04]} 53. c4 {[%clk 0:00:07]}  Nc7+ {[%clk 0:00:05]} 54. Kc5 {[%clk 0:00:07]}  Kb8 {[%clk 0:00:05]} 55. Kd6 {[%clk 0:00:07]}  Na8 {[%clk 0:00:05]} 56. Rh8+ {[%clk 0:00:07]}  Ka7 {[%clk 0:00:06]} 57. c5 {[%clk 0:00:08]}  a5 {[%clk 0:00:05]} 58. a3 {[%clk 0:00:08]}  b6 {[%clk 0:00:05]} 59. c6 {[%clk 0:00:08]}  b5 {[%clk 0:00:06]} 60. c7 {[%clk 0:00:08]}  Nb6 {[%clk 0:00:07]} 61. Kc6 {[%clk 0:00:07]}  Nc8 {[%clk 0:00:08]} 62. Rxc8 {[%clk 0:00:07]}  b4 {[%clk 0:00:08]} 63. axb4 {[%clk 0:00:07]}  Ka6 {[%clk 0:00:09]} 64. Ra8# {[%clk 0:00:08]} 1-0


[Site "https://www.chess.com"]

[Event "Titled Tuesday Blitz February 28 Late 2023"]
[White "Bilych, Olexiy"]
[Black "Florescu, Codrut-Constantin"]
[WhiteFideId "14156504"]
[BlackFideId "1202200"]
[WhiteElo "2320"]
[BlackElo "2191"]
[Result "1-0"]
[Round "08"]
[TimeControl "180+2"]
[Date "2023.02.28"]
[WhiteClock "0:01:20"]
[BlackClock "0:01:36"]

1. d4 {[%clk 0:03:00]}  Nf6 {[%clk 0:02:59]} 2. c4 {[%clk 0:03:01]}  e6 {[%clk 0:02:59]} 3. Nf3 {[%clk 0:03:00]}  Bb4+ {[%clk 0:02:59]} 4. Bd2 {[%clk 0:03:00]}  a5 {[%clk 0:02:59]} 5. g3 {[%clk 0:02:59]}  O-O {[%clk 0:02:58]} 6. Bg2 {[%clk 0:02:59]}  d5 {[%clk 0:02:58]} 7. O-O {[%clk 0:02:54]}  dxc4 {[%clk 0:02:57]} 8. Qc2 {[%clk 0:02:53]}  c6 {[%clk 0:02:54]} 9. Qxc4 {[%clk 0:02:49]}  Bxd2 {[%clk 0:02:50]} 10. Nbxd2 {[%clk 0:02:50]}  b5 {[%clk 0:02:50]} 11. Qc2 {[%clk 0:02:45]}  Ba6 {[%clk 0:02:48]} 12. e3 {[%clk 0:02:41]}  b4 {[%clk 0:02:47]} 13. Rfc1 {[%clk 0:02:41]}  Bb5 {[%clk 0:02:39]} 14. Ne5 {[%clk 0:02:38]}  Ra6 {[%clk 0:02:36]} 15. Nb3 {[%clk 0:02:23]}  Nfd7 {[%clk 0:02:35]} 16. Nc5 {[%clk 0:02:20]}  Nxc5 {[%clk 0:02:35]} 17. dxc5 {[%clk 0:02:14]}  Nd7 {[%clk 0:02:29]} 18. Rd1 {[%clk 0:02:13]}  Nxe5 {[%clk 0:02:29]} 19. Rxd8 {[%clk 0:02:10]}  Rxd8 {[%clk 0:02:30]} 20. Rd1 {[%clk 0:02:08]}  Raa8 {[%clk 0:02:28]} 21. Rd6 {[%clk 0:01:52]}  Rxd6 {[%clk 0:02:12]} 22. cxd6 {[%clk 0:01:53]}  Nd7 {[%clk 0:02:13]} 23. Bf1 {[%clk 0:01:36]}  Nf6 {[%clk 0:01:37]} 24. Bxb5 {[%clk 0:01:33]}  cxb5 {[%clk 0:01:37]} 25. Qc6 {[%clk 0:01:21]}  Rd8 {[%clk 0:01:36]} 26. Qc7 {[%clk 0:01:20]} 1-0


[Site "https://www.chess.com"]

[Event "Titled Tuesday Blitz February 28 Late 2023"]
[White "Koc, Przemyslaw"]
[Black "EREBUNI91"]
[WhiteFideId "1109081"]
[WhiteElo "2161"]
[BlackElo "2716"]
[Result "0-1"]
[Round "08"]
[TimeControl "180+2"]
[Date "2023.02.28"]
[WhiteClock "0:01:08"]
[BlackClock "0:02:13"]

1. Nf3 {[%clk 0:03:00]}  Nf6 {[%clk 0:02:59]} 2. e3 {[%clk 0:03:00]}  b6 {[%clk 0:02:59]} 3. b3 {[%clk 0:03:00]}  Bb7 {[%clk 0:02:59]} 4. Bb2 {[%clk 0:03:00]}  e6 {[%clk 0:03:00]} 5. d4 {[%clk 0:03:00]}  Be7 {[%clk 0:03:00]} 6. Nbd2 {[%clk 0:03:00]}  O-O {[%clk 0:03:00]} 7. Bd3 {[%clk 0:03:01]}  d5 {[%clk 0:02:53]} 8. O-O {[%clk 0:03:00]}  Nbd7 {[%clk 0:02:51]} 9. Ne5 {[%clk 0:02:58]}  c5 {[%clk 0:02:47]} 10. Qf3 {[%clk 0:02:57]}  Rc8 {[%clk 0:02:41]} 11. Qh3 {[%clk 0:02:56]}  g6 {[%clk 0:02:39]} 12. Nxd7 {[%clk 0:02:54]}  Qxd7 {[%clk 0:02:38]} 13. Nf3 {[%clk 0:02:46]}  c4 {[%clk 0:02:34]} 14. bxc4 {[%clk 0:02:40]}  dxc4 {[%clk 0:02:35]} 15. Ne5 {[%clk 0:02:28]}  Qb5 {[%clk 0:02:31]} 16. Nxc4 {[%clk 0:02:01]}  Rxc4 {[%clk 0:02:27]} 17. Bxc4 {[%clk 0:02:01]}  Qxc4 {[%clk 0:02:27]} 18. c3 {[%clk 0:01:39]}  Rc8 {[%clk 0:02:26]} 19. Rfd1 {[%clk 0:01:19]}  Qe2 {[%clk 0:02:22]} 20. Rab1 {[%clk 0:01:17]}  Be4 {[%clk 0:02:21]} 21. Re1 {[%clk 0:01:14]}  Qb5 {[%clk 0:02:18]} 22. a4 {[%clk 0:01:11]}  Qb3 {[%clk 0:02:17]} 23. Ba3 {[%clk 0:01:08]}  Qxa3 {[%clk 0:02:13]} 0-1


[Site "https://www.chess.com"]

[Event "Titled Tuesday Blitz February 28 Late 2023"]
[White "Mendez Fortes, Eduardo Jesus"]
[Black "Preotu, Razvan"]
[WhiteFideId "3502376"]
[BlackFideId "2613280"]
[WhiteElo "2307"]
[BlackElo "2407"]
[Result "0-1"]
[Round "08"]
[TimeControl "180+2"]
[Date "2023.02.28"]
[WhiteClock "0:00:03"]
[BlackClock "0:00:18"]

1. e4 {[%clk 0:03:00]}  c5 {[%clk 0:02:58]} 2. Nf3 {[%clk 0:03:00]}  d6 {[%clk 0:02:58]} 3. d4 {[%clk 0:03:00]}  cxd4 {[%clk 0:02:59]} 4. Nxd4 {[%clk 0:03:01]}  Nf6 {[%clk 0:02:59]} 5. Nc3 {[%clk 0:03:02]}  a6 {[%clk 0:03:00]} 6. Bg5 {[%clk 0:03:02]}  e6 {[%clk 0:02:58]} 7. f4 {[%clk 0:03:02]}  Be7 {[%clk 0:02:55]} 8. Qf3 {[%clk 0:03:01]}  Qc7 {[%clk 0:02:55]} 9. O-O-O {[%clk 0:03:01]}  Nbd7 {[%clk 0:02:54]} 10. g4 {[%clk 0:02:57]}  b5 {[%clk 0:02:49]} 11. Bxf6 {[%clk 0:02:56]}  Nxf6 {[%clk 0:02:48]} 12. g5 {[%clk 0:02:56]}  Nd7 {[%clk 0:02:48]} 13. f5 {[%clk 0:02:56]}  O-O {[%clk 0:02:46]} 14. Rg1 {[%clk 0:02:55]}  b4 {[%clk 0:02:43]} 15. Nce2 {[%clk 0:02:50]}  e5 {[%clk 0:02:42]} 16. f6 {[%clk 0:02:50]}  exd4 {[%clk 0:02:40]} 17. fxe7 {[%clk 0:02:50]}  Re8 {[%clk 0:02:40]} 18. Nxd4 {[%clk 0:02:40]}  Ne5 {[%clk 0:02:39]} 19. Qf4 {[%clk 0:02:38]}  Qc5 {[%clk 0:02:36]} 20. Rg2 {[%clk 0:02:30]}  g6 {[%clk 0:01:58]} 21. Rgd2 {[%clk 0:02:17]}  Bg4 {[%clk 0:01:45]} 22. Be2 {[%clk 0:02:10]}  Bxe2 {[%clk 0:01:42]} 23. Rxe2 {[%clk 0:02:06]}  Rxe7 {[%clk 0:01:41]} 24. Nb3 {[%clk 0:02:06]}  Qc6 {[%clk 0:01:15]} 25. Red2 {[%clk 0:01:55]}  Nc4 {[%clk 0:01:15]} 26. Rd5 {[%clk 0:01:54]}  Rae8 {[%clk 0:00:50]} 27. R1d4 {[%clk 0:01:44]}  a5 {[%clk 0:00:40]} 28. Nd2 {[%clk 0:00:19]}  Nxd2 {[%clk 0:00:37]} 29. Qxd2 {[%clk 0:00:18]}  Rxe4 {[%clk 0:00:33]} 30. Rxe4 {[%clk 0:00:16]}  Rxe4 {[%clk 0:00:33]} 31. Rxd6 {[%clk 0:00:15]}  Qc5 {[%clk 0:00:28]} 32. b3 {[%clk 0:00:10]}  Qe5 {[%clk 0:00:25]} 33. Rd8+ {[%clk 0:00:08]}  Kg7 {[%clk 0:00:24]} 34. Qf2 {[%clk 0:00:04]}  Re1+ {[%clk 0:00:18]} 35. Kd2 {[%clk 0:00:03]}  Qc3# {[%clk 0:00:18]} 0-1


[Site "https://www.chess.com"]

[Event "Titled Tuesday Blitz February 28 Late 2023"]
[White "Kleinman, Michael"]
[Black "Rosen, Eric"]
[WhiteFideId "2609479"]
[BlackFideId "2032562"]
[WhiteElo "2287"]
[BlackElo "2359"]
[Result "1-0"]
[Round "08"]
[TimeControl "180+2"]
[Date "2023.02.28"]
[WhiteClock "0:00:03"]
[BlackClock "0:00:01"]

1. e4 {[%clk 0:03:00]}  c5 {[%clk 0:02:59]} 2. Nf3 {[%clk 0:03:01]}  Nc6 {[%clk 0:02:59]} 3. Bb5 {[%clk 0:03:00]}  g6 {[%clk 0:02:59]} 4. Bxc6 {[%clk 0:02:58]}  dxc6 {[%clk 0:02:58]} 5. d3 {[%clk 0:02:57]}  Nf6 {[%clk 0:02:53]} 6. h3 {[%clk 0:02:55]}  Bg7 {[%clk 0:02:53]} 7. Nc3 {[%clk 0:02:55]}  Nd7 {[%clk 0:02:51]} 8. Be3 {[%clk 0:02:55]}  e5 {[%clk 0:02:49]} 9. Qd2 {[%clk 0:02:54]}  h6 {[%clk 0:02:49]} 10. O-O {[%clk 0:02:48]}  b6 {[%clk 0:02:49]} 11. a4 {[%clk 0:02:45]}  a5 {[%clk 0:02:49]} 12. Nh2 {[%clk 0:02:44]}  Nf8 {[%clk 0:02:48]} 13. f4 {[%clk 0:02:43]}  exf4 {[%clk 0:02:48]} 14. Bxf4 {[%clk 0:02:43]}  Ne6 {[%clk 0:02:48]} 15. Bg3 {[%clk 0:02:40]}  Nd4 {[%clk 0:02:25]} 16. Rae1 {[%clk 0:02:24]}  O-O {[%clk 0:02:24]} 17. Kh1 {[%clk 0:02:14]}  Qg5 {[%clk 0:02:18]} 18. Qf2 {[%clk 0:01:32]}  Be6 {[%clk 0:01:59]} 19. Bf4 {[%clk 0:01:21]}  Qe7 {[%clk 0:01:53]} 20. e5 {[%clk 0:01:08]}  f5 {[%clk 0:01:04]} 21. exf6 {[%clk 0:00:55]}  Qxf6 {[%clk 0:01:04]} 22. Ne4 {[%clk 0:00:44]}  Qf7 {[%clk 0:01:04]} 23. Qd2 {[%clk 0:00:37]}  g5 {[%clk 0:00:39]} 24. Bd6 {[%clk 0:00:25]}  Qg6 {[%clk 0:00:40]} 25. Bxf8 {[%clk 0:00:19]}  Rxf8 {[%clk 0:00:40]} 26. Rxf8+ {[%clk 0:00:18]}  Bxf8 {[%clk 0:00:41]} 27. Qf2 {[%clk 0:00:17]}  Bg7 {[%clk 0:00:34]} 28. Rf1 {[%clk 0:00:17]}  h5 {[%clk 0:00:26]} 29. c3 {[%clk 0:00:13]}  Nf5 {[%clk 0:00:22]} 30. g4 {[%clk 0:00:09]}  hxg4 {[%clk 0:00:18]} 31. hxg4 {[%clk 0:00:10]}  Nh4 {[%clk 0:00:18]} 32. Nf6+ {[%clk 0:00:08]}  Kh8 {[%clk 0:00:15]} 33. Ne4 {[%clk 0:00:05]}  Bd5 {[%clk 0:00:14]} 34. Kg1 {[%clk 0:00:05]}  Bxe4 {[%clk 0:00:13]} 35. dxe4 {[%clk 0:00:06]}  Qxe4 {[%clk 0:00:14]} 36. Nf3 {[%clk 0:00:06]}  Qxg4+ {[%clk 0:00:14]} 37. Kh2 {[%clk 0:00:04]}  Ng6 {[%clk 0:00:05]} 38. Qg3 {[%clk 0:00:04]}  Qxg3+ {[%clk 0:00:02]} 39. Kxg3 {[%clk 0:00:04]}  g4 {[%clk 0:00:02]} 40. Kxg4 {[%clk 0:00:04]}  Ne7 {[%clk 0:00:03]} 41. Ng5 {[%clk 0:00:04]}  Kg8 {[%clk 0:00:02]} 42. Re1 {[%clk 0:00:04]}  Nd5 {[%clk 0:00:02]} 43. Re6 {[%clk 0:00:04]}  Nf6+ {[%clk 0:00:01]} 44. Kf5 {[%clk 0:00:03]}  Nd5 {[%clk 0:00:02]} 45. Rd6 {[%clk 0:00:02]}  Kf8 {[%clk 0:00:02]} 46. Ne6+ {[%clk 0:00:02]}  Kf7 {[%clk 0:00:02]} 47. Rd7+ {[%clk 0:00:02]}  Ke8 {[%clk 0:00:02]} 48. Rxg7 {[%clk 0:00:03]}  Ne3+ {[%clk 0:00:01]} 49. Ke5 {[%clk 0:00:03]}  Nc4+ {[%clk 0:00:01]} 50. Kf6 {[%clk 0:00:03]} 1-0


[Site "https://www.chess.com"]

[Event "Titled Tuesday Blitz February 28 Late 2023"]
[White "Skvortsov, Andrei"]
[Black "Petrovic, Aleksa"]
[WhiteFideId "24108600"]
[BlackFideId "967629"]
[WhiteElo "2259"]
[BlackElo "2304"]
[Result "1-0"]
[Round "08"]
[TimeControl "180+2"]
[Date "2023.02.28"]
[WhiteClock "0:00:12"]
[BlackClock "0:00:02"]

1. d4 {[%clk 0:02:59]}  Nf6 {[%clk 0:02:59]} 2. Nf3 {[%clk 0:03:00]}  e6 {[%clk 0:02:58]} 3. g3 {[%clk 0:03:00]}  c5 {[%clk 0:02:57]} 4. Bg2 {[%clk 0:02:58]}  Qb6 {[%clk 0:02:57]} 5. O-O {[%clk 0:02:58]}  Nc6 {[%clk 0:02:57]} 6. c3 {[%clk 0:02:54]}  d5 {[%clk 0:02:56]} 7. b3 {[%clk 0:02:50]}  Be7 {[%clk 0:02:55]} 8. Bb2 {[%clk 0:02:48]}  O-O {[%clk 0:02:55]} 9. e3 {[%clk 0:02:48]}  Bd7 {[%clk 0:02:53]} 10. Re1 {[%clk 0:02:48]}  Rfd8 {[%clk 0:02:53]} 11. Nbd2 {[%clk 0:02:47]}  Rac8 {[%clk 0:02:52]} 12. c4 {[%clk 0:02:43]}  cxd4 {[%clk 0:02:46]} 13. Nxd4 {[%clk 0:02:41]}  dxc4 {[%clk 0:02:34]} 14. Nxc4 {[%clk 0:02:42]}  Qa6 {[%clk 0:02:34]} 15. Bf1 {[%clk 0:02:35]}  Nxd4 {[%clk 0:02:26]} 16. Bxd4 {[%clk 0:02:22]}  Bb5 {[%clk 0:02:20]} 17. a4 {[%clk 0:02:19]}  Bxc4 {[%clk 0:02:20]} 18. Bxc4 {[%clk 0:02:18]}  Rxc4 {[%clk 0:02:20]} 19. bxc4 {[%clk 0:02:16]}  e5 {[%clk 0:02:20]} 20. Qb3 {[%clk 0:02:03]}  exd4 {[%clk 0:02:15]} 21. exd4 {[%clk 0:02:04]}  Bf8 {[%clk 0:02:05]} 22. d5 {[%clk 0:01:50]}  Nd7 {[%clk 0:02:02]} 23. Qb5 {[%clk 0:01:49]}  Nc5 {[%clk 0:01:49]} 24. Re3 {[%clk 0:01:38]}  Qf6 {[%clk 0:01:33]} 25. Rae1 {[%clk 0:01:35]}  a6 {[%clk 0:01:29]} 26. Qb1 {[%clk 0:01:28]}  h5 {[%clk 0:01:20]} 27. h4 {[%clk 0:01:25]}  g6 {[%clk 0:01:19]} 28. Qc2 {[%clk 0:01:22]}  Bd6 {[%clk 0:01:12]} 29. Kg2 {[%clk 0:01:15]}  Kg7 {[%clk 0:01:11]} 30. Rf3 {[%clk 0:01:10]}  Qd4 {[%clk 0:01:05]} 31. Ree3 {[%clk 0:00:57]}  Rd7 {[%clk 0:00:47]} 32. Re8 {[%clk 0:00:55]}  Re7 {[%clk 0:00:44]} 33. Rxe7 {[%clk 0:00:55]}  Bxe7 {[%clk 0:00:45]} 34. Re3 {[%clk 0:00:54]}  Bd6 {[%clk 0:00:43]} 35. Re8 {[%clk 0:00:45]}  b5 {[%clk 0:00:20]} 36. axb5 {[%clk 0:00:42]}  axb5 {[%clk 0:00:21]} 37. cxb5 {[%clk 0:00:41]}  Qxd5+ {[%clk 0:00:22]} 38. Kg1 {[%clk 0:00:41]}  Ne6 {[%clk 0:00:21]} 39. Qc6 {[%clk 0:00:21]}  Qxc6 {[%clk 0:00:15]} 40. bxc6 {[%clk 0:00:21]}  Kf6 {[%clk 0:00:15]} 41. Kg2 {[%clk 0:00:18]}  Nd4 {[%clk 0:00:13]} 42. Rd8 {[%clk 0:00:15]}  Ke7 {[%clk 0:00:06]} 43. c7 {[%clk 0:00:14]}  Bxc7 {[%clk 0:00:06]} 44. Rxd4 {[%clk 0:00:14]}  Kf6 {[%clk 0:00:07]} 45. Rc4 {[%clk 0:00:14]}  Bd6 {[%clk 0:00:06]} 46. Kf3 {[%clk 0:00:15]}  Kg7 {[%clk 0:00:06]} 47. Ke4 {[%clk 0:00:15]}  Be7 {[%clk 0:00:07]} 48. Kd5 {[%clk 0:00:15]}  Ba3 {[%clk 0:00:06]} 49. Rc7 {[%clk 0:00:15]}  Bb2 {[%clk 0:00:05]} 50. Kc5 {[%clk 0:00:13]}  Ba3+ {[%clk 0:00:04]} 51. Kc4 {[%clk 0:00:13]}  Bc1 {[%clk 0:00:04]} 52. Kd5 {[%clk 0:00:13]}  Ba3 {[%clk 0:00:04]} 53. Kc6 {[%clk 0:00:12]}  Bb2 {[%clk 0:00:04]} 54. Kd7 {[%clk 0:00:11]}  Kf8 {[%clk 0:00:04]} 55. Rc8+ {[%clk 0:00:11]}  Kg7 {[%clk 0:00:04]} 56. Rc4 {[%clk 0:00:12]}  Ba3 {[%clk 0:00:04]} 57. Ke8 {[%clk 0:00:12]}  f5 {[%clk 0:00:03]} 58. Kd7 {[%clk 0:00:11]}  Kf6 {[%clk 0:00:03]} 59. Rc6+ {[%clk 0:00:11]}  Kf7 {[%clk 0:00:03]} 60. Rc3 {[%clk 0:00:10]}  Bb4 {[%clk 0:00:03]} 61. Rc2 {[%clk 0:00:10]}  Ba5 {[%clk 0:00:03]} 62. Kc6 {[%clk 0:00:11]}  Bd8 {[%clk 0:00:02]} 63. Kd5 {[%clk 0:00:11]}  Be7 {[%clk 0:00:03]} 64. Rc7 {[%clk 0:00:11]}  Kf6 {[%clk 0:00:03]} 65. Rc6+ {[%clk 0:00:12]}  Kf7 {[%clk 0:00:03]} 66. Ke5 {[%clk 0:00:12]}  Bd8 {[%clk 0:00:03]} 67. Rc8 {[%clk 0:00:11]}  Be7 {[%clk 0:00:03]} 68. Rc7 {[%clk 0:00:12]}  Kf8 {[%clk 0:00:02]} 69. Ke6 {[%clk 0:00:12]} 1-0


[Site "https://www.chess.com"]